Workbook

Sheet P&Gs
A1: FREEDOM PARK SECURITY MAIN ENTRANCE GATE
A2: Bill No. 1 | B2: PRELIMINARIES AND GENERAL | I2: SECTION 1
A5: Item no. | B5: Description | G5: Quantity | H5: Rate | I5: Amount
B7: PRELIMINARIES
B9: PRINCIPAL BUILDING AGREEMENT
B11: The agreement shall be the Principal Building Agreement
B12: prepared and published by the Joint Building Contracts
B13: Committee:Edition 4.1 Code 2101, March 2005.
B14: (The JBCC Series 2000 Principal Building Agreement).
B16: PRELIMINARIES
B18: The preliminaries shall be the Preliminaries prepared
B19: and published by the Joint Buildin Areement: Code
B20: 2103, May 2005. ( The JBCC Series.
B21: 2000 Preliminaries)
B23: FULL INTENT AND MEANING OF CLAUSES
B25: Tenderers shall be deemed to have referred to the
B26: afore-mentioned documents for the full intent and
B27: meaning of each clause. These clauses are hereinafter
B28: referred to by the heading and clause number only.
B30: Where satandards clauses or alternatives are not
B31: applicable to thiscontract, such modifications,
B32: corrections or supplements as are necessary are given
B33: under each relevant clause headin or withi the
B34: relevant schedule.
B36: Where an item is not relevant to this specific contract,
B37: such item is marked "N/A" signifying " Not applicable".
B39: PRICING OF CLAUSES
B41: Tenderers shall allow opposite each clause for any
B42: cost involved with complying with such clause.l
B43: Any clauses left unpriced shal be deemed to be
B44: covered by rates and prices elsewhere
B45: incorporated throughout these bills of quantities.
E47: Carried Forward | I47: =SUM(I7:I46) -> 0
D49: 1.1
E50: FREEDOM PARK SECURITY ENTRANCE GATE
A52: Bill No 1 | B52: PRELIMINARIES AND GENERAL | I52: SECTION 1
A55: Item no. | B55: Description | G55: Quantity | H55: Rate | I55: Amount
E58: Brought Forward | I58: =I47 -> 0
B60: PAYMENT CATEGORIES
B62: Should 'Alternative A', as set out withinin clause
B63: Clause 10.3 of the JBCC 2000 Preliminaries, be used
B64: for the adjustment of preliminaries, then each item
B65: priced is to be allocated to one or more categories by
B66: the insertion of the letter 'F" "V" or "T", as the case
B67: may be, against the price in the rate column. These
B68: letters shall indicate the relevant categories as follows:
B70: "F" - A fixed amount
B71: "V" - A variable amount in proportion to the value
B72: "T" - An amount in proportion time
B74: SECTION A:PRINCIPAL BUILDING AGREEMENT
B76: DEFINATIONS
B78: Definations and interpretation
E79: Clause 1.0
B81: F:………………V:…………………T:………………
B83: OBJECTIVE AND PREPARATION
B85: Offer, acceptance and performance
E86: Clause 2.0
B88: F:………………V:…………………T:………………
B90: Documents
B92: Clause 3.1 is hereby deleted and no payment
B93: guarantee will thus be provided by the employer.
E98: Carried Forward | I98: =SUM(I58:I95) -> 0
D100: 1.2
E102: FREEDOM PARK SECURITY ENTRANCE GATE
A104: Bill No 1 | B104: PRELIMINARIES AND GENERAL | I104: SECTION 1
A107: Item no. | B107: Description | G107: Quantity | H107: Rate | I107: Amount
E110: Brought Forward | I110: =I98 -> 0
B112: Clause 3.3 is hereby amended by deleting the words "
B113: …..within seven (7) calender days of havin received a
B114: payment guarantee from the employer in terms of 3.1
B115: "in the first sentence and subsitituting with"
B116: ……within twenty-one (21) calender days of written
B117: acceptance of the the contractor's tender."
B118: The second sentence shall remain unchanged.
E120: Clause 3.0
B122: F:………………V:…………………T:………………
A124: 4 | B124: Design responsibility
B126: The following new subclause is hereby added
B127: to this clause:
B129: 4.4 Notwithstanding the provisions of 4.2, the
B130: contractor shall ensure that every such
B131: nominated or selected subcontractor shall
B132: simultaneously with the signing of the relevant
B133: nominated or selected subcontract sign and
B134: deliver to the employer a Design materials and
B135: Workmanship Warrantly and Untertaking in
B136: favour of the employer or a Materials and
B137: Workmanship Undertaking strictly in accordance
B138: with the instructions or provisions contained
B139: in the tender documents for the nominated or
B140: selected subcontract works.
E142: Clause 4.0
B144: F:………………V:…………………T:………………
E152: Carried Forward | I152: =SUM(I110:I150) -> 0
D154: 1.3
E156: FREEDOM PARK SECURITY ENTRANCE GATE
A159: Bill No 1 | B159: PRELIMINARIES AND GENERAL | I159: SECTION 1
A162: Item no. | B162: Description | G162: Quantity | H162: Rate | I162: Amount
E166: Brought Forward | I166: =I152 -> 0
A168: 5 | B168: Employer's agents
E169: Clause 5.0
B171: F:………………V:…………………T:………………
A173: 6 | B173: Site representative
E174: Clause 6.0
B176: F:………………V:…………………T:……………… | G176: 1 | I176: =G176*H176 -> 0
A178: 7 | B178: Compliance with regulations
B180: The following new subclause is hereby added to
B181: this clause:
B183: Without limiting the generality of the provisions of
B184: clause 7.0 ofthe Agreement, the Contractor's attention
B185: is drawn to the provisions of the Construction
B186: Regulations, 2003 issued in terms of the Occupational
B187: Health and Safety Act, 1993 in which it is specifically
B188: stated that the Employer shall prepare a documented
B189: health and safety specification for the Works
B190: ( copy of the relevant specification attached hereto)
B191: and that the Employer shall ensure that the contractor
B192: has made provision for the cost of health and safety
B193: measures durin the execution of the Works. The
B194: contractor shall price opposite this item for compliance
B195: with the act and the regulations and the provisions of
B196: the aforementioned health and saferty specification.
E198: Clause 7.0
B200: F:………………V:…………………T:……………… | G200: 1 | I200: =G200*H200 -> 0
E203: Carried Forward | I203: =SUM(I166:I201) -> 0
D205: 1.4
E207: FREEDOM PARK SECURITY ENTRANCE GATE
A210: Bill No 1 | B210: PRELIMINARIES AND GENERAL | I210: SECTION 1
A213: Item no. | B213: Description | G213: Quantity | H213: Rate | I213: Amount
E216: Brought Forward | I216: =I203 -> 0
A218: 8 | B218: Works risk
E220: Clause 8.0
B222: F:………………V:…………………T:……………… | G222: 1 | I222: =G222*H222 -> 0
A224: 9 | B224: Indemnities
E225: Clause 9.0
B227: F:………………V:…………………T:……………… | G227: 1 | I227: =G227*H227 -> 0
A229: 10 | B229: Works insurance
E231: Clause 10.0
B233: F:………………V:…………………T:………………
A235: 11 | B235: Liability insurance
E237: Clause 11.0
B239: F:………………V:…………………T:………………
A241: 12 | B241: Effecting insurances
E243: Clause 12.0
B245: F:………………V:…………………T:………………
A247: 13 | B247: 13.0
E248: No Clause
E253: Carried Forward | I253: =SUM(I216:I249) -> 0
D255: 1.5
E257: FREEDOM PARK SECURITY ENTRANCE GATE
A260: Bill No 1 | B260: PRELIMINARIES AND GENERAL | I260: SECTION 1
A263: Item no. | B263: Description | G263: Quantity | H263: Rate | I263: Amount
E266: Brought Forward | I266: =I253 -> 0
A268: 14 | B268: Security
B270: Notwithstanding the provisions of sub-clause 14.1, the
B271: contractor shall submit with his tender a letter of
B272: intent from an accredited guarantor, undertaking
B273: to provide the selected JBCC constructio guarantee to
B274: the Provision of Security format appended to these
B275: bills of quantities.
B277: The employer reserves the riht to reject a construction
B278: guarantee if, in the employer, the guarantor is not
B279: accredited.
E281: Clause 14.0
B283: F:………………V:…………………T:………………
B285: EXECUTION
A287: 15 | B287: Preparation for and execution of the Works
E289: Clause 15.0
B291: F:………………V:…………………T:………………
A293: 16 | B293: Access to the Works
B295: The contractor shall afford all reasonable access to
B296: other contractors and/or sub-contractors who may be
B297: employed by the client to execute other work whether
B298: in connection with the Contract Work or not.
E300: Clause 16.0
B302: F:………………V:…………………T:………………
E307: Carried Forward | I307: =SUM(I266:I303) -> 0
D308: 1.6
E310: FREEDOM PARK SECURITY ENTRANCE GATE
A312: Bill No 1 | B312: PRELIMINARIES AND GENERAL | I312: SECTION 1
A315: Item no. | B315: Description | G315: Quantity | H315: Rate | I315: Amount
E318: Brought Forward | I318: =I307 -> 0
A320: 17 | B320: Contract instructions
E322: Clause 17.0
B324: F:………………V:…………………T:………………
A326: 18 | B326: Setting out of the Works
B328: The Contractor shall notify the Principal Agent if any
B329: encroachments of adjoining foundations, buildings,
B330: structures, pavements, boundaries,etc. exist in order
B331: to make the necessary arrangements for the
B332: rectification of any such encroachments.
E334: Clause 18.0
B336: F:………………V:…………………T:………………
A338: 19 | B338: Assignment
E340: Clause 19.0
B342: F:………………V:…………………T:………………
A344: 20 | B344: Nominated Subcontractors
E346: Clause 20.0
B348: F:………………V:…………………T:………………
A350: 21 | B350: Selected subcontractors
... 955 more rows

Sheet Freedom Park Security Gate BoQ
D1: FREEDOM PARK SECURITY GATES
A2: SECTION | B2: BILL | C2: PAGE NO | D2: ITEM NO | E2: DESCRIPTION | F2: UNIT | G2: QUANTITY | H2: RATE | I2: AMOUNT
A4: 2 | B4: 2 | C4: 49 | E4: SECTION 2 : BUILDING WORKS
A6: 2 | B6: 2 | C6: 49 | E6: BILL NO. 2 : EARTHWORKS (PROVISIONAL)
A8: 2 | B8: 2 | C8: 49 | E8: PREAMBLES
A10: 2 | B10: 2 | C10: 49 | E10: The Tenderer is referred to the relevant Clauses in the separate documents General Specification (PW 371-A) July 2013 and Particular Specification (PW 371B) July 2013.
A12: 2 | B12: 2 | C12: 49 | E12: SUPPLEMENTARY PREAMBLES
A14: 2 | B14: 2 | C14: 49 | E14: Nature of groundThe tenderer acquaint himself by personal examination of the nature of the ground. Descriptions of excavations shall be deemed to included all ground conditions classifiable as "earth" and where conditions of a more difficult character are indicated these are separately measured. Carting away of excavated materialDescriptions of carting away of excavated material shall be deemed to include loading excavated material onto truck directly from the excavation or alternatively, from stock piles situated on the building siteExcavation No claim for rock excavation will be entertained unless the contractor has timeously notified the Quantity Surveyor thereof prior to backfilling. " Soft rock" and "hard rock" shall be as defined in "Earthworks"
A16: 2 | B16: 2 | C16: 49 | E16: Note: Tenderer are advised to study the Model Preambles for Trades before pricing this bill
E18: SITE CLEARANCE ETC
E20: Site clearance
D22: 1 | E22: Digging up and removing rubbish, debris, vegetation, hedges, | F22: m2 | G22: 3000 | I22: =SUM(G22*H22) -> 0
E23: shrubs and trees not exceeding 200mm girth, bush, etc
D25: 2 | E25: Stripping average 150mm thick layer of top soil and stockpiling | F25: m2 | G25: 3000 | I25: =SUM(G25*H25) -> 0
E26: on site
A28: 2 | B28: 2 | C28: 50 | E28: BLOCK 1 ENTRANCE BUILDINGS (SECURITY GUARD HOUSE AND OFFICES)
A30: 2 | B30: 2 | C30: 50 | E30: EXCAVATIONS
A32: 2 | B32: 2 | C32: 50 | E32: Excavations in earth not exceeding 2m deep
A34: 2 | B34: 2 | C34: 50 | D34: 3 | E34: Foundations | F34: m3 | G34: 230 | I34: =G34*H34 -> 0
E36: Extra over trench and hole excavations for excavation in:
D38: 4 | E38: Soft rock | F38: m3 | G38: 85 | I38: =SUM(G38*H38) -> 0
D40: 5 | E40: Hard rock | F40: m3 | G40: 45 | I40: =SUM(G40*H40) -> 0
A42: 2 | B42: 2 | C42: 50 | E42: Extra over all excavations for carting away
A44: 2 | B44: 2 | C44: 50 | D44: 6 | E44: Surplus material from excavations and/or stock piles on site to a dumping site to be located by the contractor | F44: m3 | G44: 120 | I44: =G44*H44 -> 0
E46: Risk of collapse of excavations
D48: 7 | E48: Side of trench and hole excavations from natural, elevated or reduced ground level not exceeding 1500mm deep | F48: m2 | G48: 976 | I48: =SUM(G48*H48) -> 0
A50: 2 | B50: 2 | C50: 50 | E50: Keeping excavations free of water
A52: 2 | B52: 2 | C52: 50 | D52: 8 | E52: Keeping excavations free of water other than subterranean water (Proven Method and Expenditure) | F52: Item | G52: 1 | I52: =G52*H52 -> 0
A54: 2 | B54: 2 | C54: 50 | E54: FILLING
E55: Earth filling obtained from the excavations
A57: 2 | B57: 2 | C57: 50 | E57: Earth filling obtained from excavations and/or prescribed stock piles on site, compacted in 150mm layers to 93% Mod AASHTO density
A59: 2 | B59: 2 | C59: 50 | D59: 9 | E59: Backfilling to strip footings, bases etc | F59: m3 | G59: 106 | I59: =G59*H59 -> 0
E61: Earth filling supplied by the contractor
E63: Earth filling obtained from disgnated borrow pits and/or prescribed comercial sources, compacted in 150mm layers to 93% Mod AASHTO density
D65: 10 | E65: Backfilling to strip footings, bases etc | F65: m3 | G65: 120 | I65: =SUM(G65*H65) -> 0
A67: 2 | B67: 2 | C67: 50 | E67: Compaction of surfaces
A69: 2 | B69: 2 | C69: 50 | D69: 11 | E69: Scarifying ground surface under floors etc for a depth of 150mm, breaking down oversize material, adding suitable material where necessary and re-compacting to 93% Mod AASHTO density | F69: m2 | G69: 110 | I69: =G69*H69 -> 0
A71: 2 | B71: 2 | C71: 50 | E71: Prescribed density tests on filling
E72: Modified AASTHO Density test
A73: 2 | B73: 2 | C73: 50 | D73: 12 | E73: Modified AASTHO Density test | F73: No | G73: 24 | I73: =G73*H73 -> 0
A75: 2 | B75: 2 | C75: 50 | E75: SOIL POISONING
A77: 2 | B77: 2 | C77: 50 | E77: Soil insecticide in accordance with Architects Specifications
A79: 2 | B79: 2 | C79: 50 | D79: 13 | E79: Under floors etc including forming and poisoning shallow furrows against foundations walls etc. filling and ramming | F79: m2 | G79: 126 | I79: =G79*H79 -> 0
A81: 2 | B81: 2 | C81: 51 | D81: 14 | E81: To bottoms and sides of trenches etc | F81: m2 | G81: 960 | I81: =G81*H81 -> 0
E90: TOTAL CARRIED TO SUMMARY SECTION | I90: =SUM(I22:I81) -> 0
A93: 2 | B93: 3 | C93: 67 | E93: SECTION 2 : BUILDING WORKS
A95: 2 | B95: 3 | C95: 67 | E95: BILL NO. 3 : CONCRETE, FORMWORK AND REINFORCEMENT
A97: 2 | B97: 3 | C97: 67 | E97: PREAMBLES
A99: 2 | B99: 3 | C99: 67 | E99: The Tenderer is referred to the relevant Clauses in the separate documents General Specification (PW 371-A) July 2013 and Particular Specification (PW 371B) July 2013.
A101: 2 | B101: 3 | C101: 67 | E101: SUPPLEMENTARY PREAMBLES
A103: 2 | B103: 3 | C103: 67 | E103: Cost of test
A105: 2 | B105: 3 | C105: 67 | E105: The costs of making, storing and testing of concrete test cubes as required under clause 7 "Tests" of SABS 1200 G shall include the cost of providing cube moulds necessary for the purpose, for testing costs and for submitting reports on the tests to the principal agent. The testing shall be undertaken by an independent firm or institution nominated by the contractor to the approval of the principal agent. (Test cubes are measured separately)
A107: 2 | B107: 3 | C107: 67 | E107: Formwork
A109: 2 | B109: 3 | C109: 67 | E109: Descriptions of formwork shall be deemed to include use and waste only (except where described as "left in" or "permanent"), for fitting together in the required forms, wedging, plumbing and fixing to true angles and surfaces as necessary to ensure easy release during stripping and for reconditioning as necessary before re-use
A111: 2 | B111: 3 | C111: 67 | E111: REINFORCED CONCRETE CAST AGAINST EXCAVATED SURFACES
E113: 15Mpa/19mm Concrete
D115: 1 | E115: Ramps | F115: m3 | G115: 5 | I115: =G115*H115 -> 0
D117: 2 | E117: Apron | F117: m3 | G117: 4 | I117: =G117*H117 -> 0
A119: 2 | B119: 3 | C119: 68 | E119: 25Mpa/19mm Concrete
A121: 2 | B121: 3 | C121: 68 | D121: 3 | E121: Strip footings and Column Bases | F121: m3 | G121: 110 | I121: =G121*H121 -> 0
A123: 2 | B123: 3 | C123: 68 | D123: 4 | E123: Surface beds on waterproofing | F123: m3 | G123: 15 | I123: =G123*H123 -> 0
A125: 2 | B125: 3 | C125: 68 | E125: REINFORCED CONCRETE CAST IN/ON FORMWORK
A127: 2 | B127: 3 | C127: 68 | E127: 25MPa/19mm concrete
A129: 2 | B129: 3 | C129: 68 | D129: 5 | E129: Columns and concrete walls | F129: m3 | G129: 30 | I129: =G129*H129 -> 0
A131: 2 | B131: 3 | C131: 68 | D131: 6 | E131: Roof Beam | F131: m3 | G131: 10 | I131: =G131*H131 -> 0
A133: 2 | B133: 3 | C133: 68 | E133: SMOOTH FORMWORK
A135: 2 | B135: 3 | C135: 68 | E135: Smooth formwork to soffits
A137: 2 | B137: 3 | C137: 68 | D137: 7 | E137: Slab and Roof Beam | F137: m2 | G137: 60 | I137: =G137*H137 -> 0
A139: 2 | B139: 3 | C139: 68 | E139: TEST CUBES
A141: 2 | B141: 3 | C141: 68 | D141: 8 | E141: Allow for all necessary concrete test cubes size 150 x 150 mm cast from batches of concrete required for the entire contract as specified, made, stored, cured and tested in accordance with SABS Methods 861 and 863, including use of approved cube moulds, transporting to an approved testing laboratory for testing, paying all charges and submitting reports to the Representative/Agent. One set consist of 6no. 150x150mm cubes | F141: Set | G141: 18 | I141: =G141*H141 -> 0
A143: 2 | B143: 3 | C143: 68 | E143: CONCRETE SUNDRIES
A145: 2 | B145: 3 | C145: 68 | E145: Finishing top of surface bed smooth with a power float
A147: 2 | B147: 3 | C147: 68 | D147: 9 | E147: Surface beds, slabs, etc | F147: m2 | G147: 130 | I147: =G147*H147 -> 0
A149: 2 | B149: 3 | C149: 69 | E149: Finishing top of surface bed smooth with a wood float
A151: 2 | B151: 3 | C151: 69 | D151: 10 | E151: Apron | F151: m2 | G151: 40 | I151: =G151*H151 -> 0
D153: 11 | E153: Apron | F153: m2 | G153: 16 | I153: =G153*H153 -> 0
A154: 2 | B154: 3 | C154: 69
E155: MOVEMENT JOINT
A156: 2 | B156: 3 | C156: 69
E157: 10 mm Wide Jointex with 10 x 10mm tear off strip with Polysulphide on surface beds not exceeding 300mm wide
A159: 2 | B159: 3 | C159: 69 | D159: 12 | E159: Not exceeding 300mm high to edges of surface bed | F159: m | G159: 24 | I159: =G159*H159 -> 0
A161: 2 | B161: 3 | C161: 69 | D161: 12 | E161: 10mm Construction joint between vertical concrete surfaces, debonded with Lime Wash or Bitumen, groove and sealant saw cut filled with Polysulphide sealant Durakol 25 or Similar approved with Polyethylene bond breaker backing tape | F161: m | G161: 20 | I161: =G161*H161 -> 0
A163: 2 | B163: 3 | C163: 69 | D163: 14 | E163: Surface beds and Apron not exceeding 300mm thick 25 x 3mm Deep saw-cut joints in top of concrete | F163: m | G163: 25 | I163: =G163*H163 -> 0
E169: TOTAL CARRIED FORWARD | I169: =SUM(I115:I163) -> 0
E172: TOTAL BROUGHT FORWARD | I172: =I169 -> 0
E174: REINFORCEMENT
A175: 2 | B175: 3 | C175: 69
E176: Mild steel reinforcement for structural concrete work
A178: 2 | B178: 3 | C178: 69 | D178: 15 | E178: 8mm diameter bars | F178: t | G178: 2 | I178: =G178*H178 -> 0
E180: High tensile reinforcement for structural concrete work
A182: 2 | B182: 3 | C182: 69 | D182: 17 | E182: 8mm Diameter bars | F182: t | G182: 2 | I182: =G182*H182 -> 0
A184: 2 | B184: 3 | C184: 69 | D184: 18 | E184: 12mm Diameter bars | F184: t | G184: 5 | I184: =G184*H184 -> 0
A186: 2 | B186: 3 | C186: 69 | D186: 19 | E186: 16mm Diameter bars | F186: t | G186: 5 | I186: =G186*H186 -> 0
E188: Fabric mesh reinforcement
A190: 2 | B190: 3 | C190: 69 | D190: 20 | E190: Type Ref 193 fabric reinforcement in concrete slabs etc. | F190: m2 | G190: 130 | I190: =G190*H190 -> 0
A192: 2 | B192: 3 | C192: 69 | D192: 21 | E192: Type Ref 100 fabric reinforcement on ceilings | F192: m2 | G192: 10 | I192: =G192*H192 -> 0
E257: TOTAL CARRIED TO SUMMARY SECTION | I257: =SUM(I172:I192) -> 0
E260: SECTION 2 : BUILDING WORKS
A261: 2 | B261: 4 | C261: 90
E262: BILL NO. 4 : MASONRY
A263: 2 | B263: 4 | C263: 90
E264: PREAMBLES
A265: 2 | B265: 4 | C265: 90
E266: The Tenderer is referred to the relevant Clauses in the separate documents General Specification (PW 371-A) July 2013 and Particular Specification (PW 371B) July 2013.
A267: 2 | B267: 4 | C267: 90
E268: SUPPLEMENTARY PREAMBLES
A269: 2 | B269: 4 | C269: 90
E270: Sizes in descriptions
A271: 2 | B271: 4 | C271: 90
E272: Where sizes in descriptions are given in brick units, "one brick" shall represent the length and "half brick" the width of a brick
A273: 2 | B273: 4 | C273: 90
E274: Face bricks
A275: 2 | B275: 4 | C275: 90
E276: Bricks shall be ordered timorously to obtain uniformity in size and colour
A277: 2 | B277: 4 | C277: 90
E278: BLOCK 1 ENTRANCE BUILDINGS (SECURITY GUARD HOUSE AND OFFICES)
A279: 2 | B279: 4 | C279: 90
E280: FOUNDATION BRICKWORK
A281: 2 | B281: 4 | C281: 90
E282: Brickwork of NFP burnt clay bricks (14MPa nominal compressive strength) in class II mortar (SABS 227)
A284: 2 | B284: 4 | C284: 90 | D284: 1 | E284: Half brick walls | F284: m2 | G284: 0 | I284: =G284*H284 -> 0
A286: 2 | B286: 4 | C286: 90 | D286: 2 | E286: One brick walls | F286: m2 | G286: 330 | I286: =G286*H286 -> 0
A288: 2 | B288: 4 | C288: 90 | D288: 3 | E288: Columns | F288: m3 | G288: 10 | I288: =G288*H288 -> 0
E290: SUPERSTRUCTURE BRICKWORK
A291: 2 | B291: 4 | C291: 90
E292: Brickwork of NFP burnt clay bricks (14MPa nominal compressive strength) in class II mortar (SABS 227)
A294: 2 | B294: 4 | C294: 90 | D294: 4 | E294: Half Brick Walls | F294: m2 | G294: 60 | I294: =G294*H294 -> 0
A296: 2 | B296: 4 | C296: 91 | D296: 5 | E296: One Brick Walls | F296: m2 | G296: 1020 | I296: =G296*H296 -> 0
A298: 2 | B298: 4 | C298: 91 | D298: 6 | E298: One and a half Brick walls | F298: m2 | G298: 5 | I298: =G298*H298 -> 0
A300: 2 | B300: 4 | C300: 91 | D300: 7 | E300: One brick gable Walls | F300: m2 | G300: 60 | I300: =G300*H300 -> 0
A302: 2 | B302: 4 | C302: 91 | D302: 8 | E302: Half brick wall in beamfilling | F302: m2 | G302: 30 | I302: =G302*H302 -> 0
A304: 2 | B304: 4 | C304: 91 | D304: 9 | E304: Columns | F304: m3 | G304: 10 | I304: =G304*H304 -> 0
A306: 2 | B306: 4 | C306: 91 | E306: BRICKWORK SUNDRIES
A308: 2 | B308: 4 | C308: 91 | E308: 2.5mm Brickwork Reinforcement
A310: 2 | B310: 4 | C310: 91 | D310: 10 | E310: 75mm Wide built in horizontally | F310: m | G310: 360 | I310: =G310*H310 -> 0
A312: 2 | B312: 4 | C312: 91 | D312: 11 | E312: 150mm Wide built in horizontally | F312: m | G312: 7200 | I312: =G312*H312 -> 0
E314: FACE BRICKWORK
A315: 2 | B315: 4 | C315: 91
E316: Moroccan red blend travertine or similar approved face bricks pointed with flush horizontal and vertical joints
A318: 2 | B318: 4 | C318: 91 | D318: 12 | E318: Extra over brickwork for face brickwork in foundations (provisional) | F318: m2 | G318: 2 | I318: =G318*H318 -> 0
A320: 2 | B320: 4 | C320: 91 | D320: 13 | E320: Extra over brickwork for face brickwork | F320: m2 | G320: 2 | I320: =G320*H320 -> 0
A322: 2 | B322: 4 | C322: 91 | D322: 14 | E322: Extra over brickwork for brick-on-edge header course lintels 1 course(s) high, pointed on face | F322: m | G322: 2 | I322: =G322*H322 -> 0
E324: Brick-on-edge header coarse copings, sills etc of Moroccan red blend travertine or similar approved face bricks, pointed with recessed joints on all exposed faces
A326: 2 | B326: 4 | C326: 91 | D326: 15 | E326: 220mm Wide sills set sloping and slightly projected | F326: m | G326: 10 | I326: =G326*H326 -> 0
E338: TOTAL CARRIED TO SUMMARY SECTION | I338: =SUM(I284:I326) -> 0
E343: SECTION 2 : BUILDING WORKS
A344: 2 | B344: 5 | C344: 107
E345: BILL NO. 5 : WATERPROOFING
A346: 2 | B346: 5 | C346: 107
E347: PREAMBLES
A348: 2 | B348: 5 | C348: 107
E349: The Tenderer is referred to the relevant Clauses in the separate documents General Specification (PW 371-A) July 2013 and Particular Specification (PW 371B) July 2013.
A350: 2 | B350: 5 | C350: 107
E351: SUPPLEMENTARY PREAMBLES
A352: 2 | B352: 5 | C352: 107
E353: Note: Tenderers are advised to study the Model Preambles for Trades before pricing this bill
A354: 2 | B354: 5 | C354: 107
E355: DAMPPROOFING OF WALLS AND FLOORS
A356: 2 | B356: 5 | C356: 107
E357: One layer 375 micron embossed damp proof course (SABS 9520 Type B)
A359: 2 | B359: 5 | C359: 107 | D359: 1 | E359: In walls | F359: m2 | G359: 30 | I359: =G359*H359 -> 0
A361: 2 | B361: 5 | C361: 107 | E361: One layer of 250 micron damp proof course (SABS Specification 9520 Type C) waterproof sheeting sealed at laps with "Gunplas Pressure Sensitive Tape
A363: 2 | B363: 5 | C363: 107 | D363: 2 | E363: Under Surface bed | F363: m2 | G363: 130 | I363: =G363*H363 -> 0
E425: TOTAL CARRIED TO SUMMARY SECTION | I425: =SUM(I359:I363) -> 0
E428: SECTION 2 : BUILDING WORKS
A429: 2 | B429: 6 | C429: 111
E430: BILL NO. 6 : ROOF COVERING
A431: 2 | B431: 6 | C431: 111
E432: PREAMBLES
A433: 2 | B433: 6 | C433: 111
E434: The Tenderer is referred to the relevant Clauses in the separate documents General Specification (PW 371-A) July 2013 and Particular Specification (PW 371B) July 2013.
A435: 2 | B435: 6 | C435: 111
E436: SUPPLEMENTARY PREAMBLES
A437: 2 | B437: 6 | C437: 111
E438: IBR ROOF COVERING
A439: 2 | B439: 6 | C439: 111
E440: Guarantees
A441: 2 | B441: 6 | C441: 111
E442: The contractor will be required to provide a written guarantee for the roof covering as follows:
A443: 2 | B443: 6 | C443: 111
E444: CHROMADECK roof covering material - 10 years Workmanship - 10 years
A445: 2 | B445: 6 | C445: 111
E446: Certificate for Galvanised Roof Sheeting
A447: 2 | B447: 6 | C447: 111
E448: The contractor is to submit a certificate signed by the merchant, stating that the galvanised roof covering supplied, complies with the required thickness specified
A449: 2 | B449: 6 | C449: 111
E450: Note: Tenderers are advised to study the Model Preambles for Trades before pricing this bill
A451: 2 | B451: 6 | C451: 111
E452: IBR PROFILE SHEETING
A453: 2 | B453: 6 | C453: 112
E454: CHROMADECK-profile 0.58mm thick Z275 spelter galvanised steel roof sheeting @ 30°, fixed to timber purlins
A456: 2 | B456: 6 | C456: 112 | D456: 1 | E456: Roof covering with 30 degree pitch and accessories, including ridge capping, gable and gable trims, flashings etc. Concealed fixed to 76x50mm SA pine Timber purlins @ 1200mm c/c (elsewhere measured) | F456: m2 | G456: 250 | I456: =G456*H456 -> 0
E458: ROOF AND WALL INSULATION
A459: 2 | B459: 6 | C459: 112
E460: Sisalation 405 Reflective foil underlay in accordance with SANS 1381-4 overlapped longitudinally by 100mm; on and including galvanised straining wire spaced at 383mm centres fixed parallel over purlins to manufacturer's instruction
A462: 2 | B462: 6 | C462: 112 | D462: 2 | E462: Insulation sheeting laid taut over purlins (at approximately 1200mm centres) and fixed concurrently with roof covering with minimum 150mm stapled laps including galvanised straining wires at not exceeding 400mm centres and one-sided tape at edges where required (Layer 1) (LI) | F462: m2 | G462: 250 | I462: =G462*H462 -> 0
E503: TOTAL CARRIED TO SUMMARY SECTION | I503: =SUM(I456:I462) -> 0
E506: BILL NO. 7 : CARPENTRY AND JOINERY, ETC.
A507: 2 | B507: 7 | C507: 118
E508: PREAMBLES
... 920 more rows

Sheet SUMMARY
A1: FREEDOM PARK SECURITY GATE SUMMARY PAGE
A3: ITEM | B3: Final Summary | C3: Totals
A5: 1 | B5: Preliminary and Generals | C5: ='P&Gs'!I2215 -> R0.00
A7: 2 | B7: Main works | C7: R0.00
B9: Mechanical - Internal Wet Services | C9: ='Freedom Park Security Gate BoQ'!I1893 -> R0.00
B11: Mechanical - HVAC | C11: ='Freedom Park Security Gate BoQ'!I2224 -> R0.00
B13: Electrical and Electronics | C13: ='Freedom Park Security Gate BoQ'!I2629 -> R0.00
B15: Sub-Total 1 | C15: R0.00
A17: 4 | B17: Contigency @ 10% | C17: R0.00
A19: 5 | B19: Sub -Total 2 | C19: R0.00
A21: 6 | B21: VAT @ 15% | C21: R0.00
A23: 7 | B23: Carried to Form of Tender | C23: R0.00
